{"text_format":"2","workbook":"xlsx","n_sheets":3,"sheets":["Свод показателей НОКО","Показатели и критерии","Опрос"],"not_rendered":{"charts":0,"images":0,"macros":0,"external_links":0,"defined_names":0,"comments":0,"pivot_tables":0},"unopened":[],"bounds":{"document_bytes":16777216,"sheet_cells":100000,"run_cost":"one","rows_first":2000,"rows_last":500,"rows_between":2000,"halvings":0,"cell_chars":16384,"cell_head_chars":4096},"cells_cut":0,"cells_raw":0,"read":"whole","date_system":"1900"}

{"sheet":"Свод показателей НОКО","index":0,"n_rows":18,"n_cols":201,"rows_kept":18,"cut":false,"hidden":false,"merged":[[13,0,13,7],[14,0,14,7],[15,0,15,7],[16,0,16,7],[0,0,6,0],[17,0,17,7],[4,192,6,192],[4,193,6,193],[4,194,6,194],[2,178,6,178],[2,179,6,179],[1,160,1,179],[2,191,6,191],[2,172,2,175],[2,176,6,176],[2,177,6,177],[3,172,3,175],[4,172,6,172],[4,173,6,173],[4,174,6,174],[4,175,6,175],[2,165,6,165],[2,160,2,163],[2,166,2,169],[4,195,6,195],[1,200,6,200],[4,182,6,182],[4,183,6,183],[4,186,6,186],[4,187,6,187],[4,188,6,188],[4,189,6,189],[2,192,2,195],[2,196,6,196],[2,197,6,197],[2,198,6,198],[2,199,6,199],[3,180,3,183],[3,186,3,189],[3,192,3,195],[4,180,6,180],[4,181,6,181],[1,180,1,199],[2,180,2,183],[2,184,6,184],[2,185,6,185],[2,186,2,189],[2,190,6,190],[2,170,6,170],[2,171,6,171],[3,166,3,169],[4,166,6,166],[4,167,6,167],[4,168,6,168],[4,169,6,169],[4,160,6,160],[4,161,6,161],[4,162,6,162],[4,163,6,163],[3,160,3,163],[2,164,6,164],[2,152,2,155],[2,156,6,156],[2,157,6,157],[2,158,6,158],[2,159,6,159],[3,152,3,155],[4,152,6,152],[4,153,6,153],[4,154,6,154],[4,155,6,155],[4,145,6,145],[4,146,6,146],[4,147,6,147],[4,148,6,148],[4,136,6,136],[4,137,6,137],[4,138,6,138],[4,139,6,139],[3,133,3,139],[4,142,6,142],[3,142,3,149],[2,123,6,123],[2,129,6,129],[1,104,1,132],[4,133,6,133],[4,134,6,134],[4,135,6,135],[1,133,1,159],[5,118,6,118],[5,119,6,119],[5,120,6,120],[4,121,6,121],[4,122,6,122],[4,125,6,125],[2,131,6,131],[2,132,6,132],[4,149,6,149],[2,140,6,140],[2,141,6,141],[2,133,2,139],[2,150,6,150],[2,151,6,151],[2,142,2,149],[4,143,6,143],[4,144,6,144],[2,80,6,80],[2,90,6,90],[2,100,6,100],[2,111,6,111],[5,68,6,68],[5,69,6,69],[5,70,6,70],[5,71,6,71],[5,72,6,72],[5,73,6,73],[4,96,6,96],[4,83,6,83],[4,84,6,84],[4,85,6,85],[4,86,6,86],[4,87,6,87],[4,88,6,88],[4,71,4,72],[4,73,4,75],[4,77,6,77],[4,78,6,78],[4,79,6,79],[4,82,6,82],[5,74,6,74],[5,62,6,62],[5,63,6,63],[5,64,6,64],[5,65,6,65],[5,66,6,66],[5,67,6,67],[5,56,6,56],[5,57,6,57],[5,58,6,58],[5,59,6,59],[5,60,6,60],[5,61,6,61],[5,50,6,50],[5,51,6,51],[5,52,6,52],[5,53,6,53],[5,54,6,54],[5,55,6,55],[5,44,6,44],[5,45,6,45],[5,46,6,46],[5,47,6,47],[5,48,6,48],[5,49,6,49],[5,40,6,40],[5,41,6,41],[5,42,6,42],[5,43,6,43],[5,32,6,32],[5,33,6,33],[5,34,6,34],[5,35,6,35],[5,36,6,36],[5,37,6,37],[5,31,6,31],[5,20,6,20],[5,21,6,21],[5,22,6,22],[5,23,6,23],[5,24,6,24],[5,25,6,25],[5,38,6,38],[5,39,6,39],[5,19,6,19],[4,113,6,113],[4,114,4,117],[4,118,4,120],[5,114,6,114],[5,115,6,115],[5,116,6,116],[5,117,6,117],[4,97,6,97],[4,98,6,98],[4,99,6,99],[4,104,6,104],[4,105,6,105],[4,106,6,106],[4,89,6,89],[4,92,6,92],[4,93,6,93],[4,94,6,94],[4,95,6,95],[5,26,6,26],[5,27,6,27],[5,28,6,28],[5,29,6,29],[5,30,6,30],[4,10,6,10],[4,11,6,11],[4,12,6,12],[4,13,6,13],[5,14,6,14],[5,15,6,15],[5,16,6,16],[5,17,6,17],[5,18,6,18],[2,113,2,122],[4,107,6,107],[4,108,6,108],[4,109,6,109],[4,110,6,110],[4,2,6,2],[4,3,6,3],[4,4,6,4],[4,5,6,5],[4,6,6,6],[4,7,6,7],[3,1,3,13],[3,14,3,79],[3,82,3,89],[5,75,6,75],[5,76,6,76],[4,14,4,18],[4,19,4,22],[4,23,4,36],[4,37,4,48],[4,50,4,62],[4,63,4,70],[4,8,6,8],[4,9,6,9],[1,1,1,103],[2,1,2,79],[2,81,6,81],[2,82,2,89],[2,91,6,91],[2,92,2,99],[2,101,6,101],[2,102,6,102],[0,1,0,200],[3,92,3,95],[3,96,3,99],[3,104,3,110],[3,113,3,122],[3,125,3,128],[4,1,6,1],[2,124,6,124],[2,125,2,128],[2,130,6,130],[4,126,6,126],[4,127,6,127],[4,128,6,128],[2,103,6,103],[2,104,2,110],[2,112,6,112]]}
["Наименование образовательной организации","Свод показателей НОКО 2018"]
[null,"1. Показатели, характеризующие открытость и доступность информации об образовательной организации ",{"$nulls":102},"2. Показатели, характеризующие комфортность условий предоставления образовательных услуг",{"$nulls":28},"3. Показатели, характеризующие доступность услуг для инвалидов",{"$nulls":26},"4. Показатели, характеризующие доброжелательность, вежливость работников организаций социальной сферы",{"$nulls":19},"5. Показатели, характеризующие удовлетворённость условиями оказания услуг",{"$nulls":19},"Результат независимой оценки качества в образовательных организациях"]
[null,"1.1. Соответствие информации о деятельности образовательной организации, размещённой на общедоступных информационных ресурсах, её содержанию и порядку (форме), установленным нормативными правовыми актами",{"$nulls":78},"Значимость показателя 1.1.","Значение показателя 1.1.","1.2. Обеспечение на официальном сайте образовательной организации наличия и функционирования дистанционных способов обратной связи и взаимодействия с получателями образовательных услуг",{"$nulls":7},"Значимость показателя 1.2.","Значение показателя 1.2.","1.3. Доля получателей образовательных услуг, удовлетворённых открытостью, полнотой и доступностью информации о деятельности образовательной организации, размещённой на информационных стендах в помещении образовательной организации, на официальном сайте образовательной организации в сети \"Интернет\"",{"$nulls":7},"Значимость показателя 1.3.","Значение показателя 1.3.","Значимость критерия 1","Итоговая оценка по критерию 1","2.1. Обеспечение в образовательной организации комфортных условий для предоставления образовательных услуг ",{"$nulls":6},"Значимость показателя 2.1.","Значение показателя 2.1.","2.2. Наличие возможности развития творческих способностей и интересов обучающихся",{"$nulls":9},"Значимость показателя 2.2.","Значение показателя 2.2.","2.3. Доля участников образовательных отеошений, удовлетворённых комфортностью предоставления услуг образовательной организацией ",null,null,null,"Значимость показателя 2.3.","Значение показателя 2.3.","Значимость критерия 2","Итоговая оценка по критерию 2","3.1. Оборудование помещений образовательной организации и прилегающей к ней территории с учётом доступности для инвалидов",{"$nulls":6},"Значимость показателя 3.1.","Значение показателя 3.1.","3.2. Обеспечение в образовательной организации условий доступности, инвалидам получать образовательные услуги наравне с другими",{"$nulls":7},"Значимость показателя 3.2.","Значение показателя 3.2.","3.3. Доля получателей услуг, удовлетворённых доступностью услуг для инвалидов",null,null,null,"Значимость показателя 3.3.","Значение показателя 3.3.","Значимость критерия 3","Итоговая оценка по критерию  3","4.1. Доля получателей образовательных услуг, удовлетворённых доброжелательностью, вежливостью работников образовательной организации, обеспечивающих первичный контакт и информирование получателя услуги при непосредственном обращении",null,null,null,"Значимость показателя 4.1.","Значение показателя 4.1.","4.2. Доля получателей образовательных услуг, удовлетворённых доброжелательностью, вежливостью работников образовательной организации, обеспечивающих непосредственное оказание услуги при обращении в образовательную организацию",null,null,null,"Значимость показателя 4.2.","Значение показателя 4.2.","4.3. Доля получателей образовательных услуг, удовлетворённых доброжелательностью, вежливостью работников образовательной организации при использовании дистанционных форм взаимодействия",null,null,null,"Значимость показателя 4.3.","Значение показателя 4.2.","Значимость критерия 4","Итоговая оценка по критерию 4","5.1. Доля участников образовательных отношений, которые готовы рекомендовать образовательную организацию родственникам и знакомым",null,null,null,"Значимость показателя 5.1.","Значение показателя 5.1.","5.2. Доля участников образовательных отношений, удовлетворённых удобством графика работы образовательной организации",null,null,null,"Значимость показателя 5.2.","Значение показателя 5.2.","5.3. Доля участников образовательных отношений, удовлетворённых в целом условиями оказания образовательных услуг в образовательной организации",null,null,null,"Значимость показателя 5.3.","Значение показателя 5.3.","Значимость критерия ","Итоговая оценка по критерию 5"]
[null,"1.1.1. Соответствие информации о деятельности образовательной организации, размещённой на информационных стендах в помещении образовательной организации, её содержанию и порядку (форме), установленным нормативными правовыми актами",{"$nulls":12},"1.1.2. Соответствие информации о деятельности образовательной организации, размещённой на официальном сайте образовательной организации, её содержанию и порядку (форме), установленным нормативными правовыми актами",{"$nulls":67},"1.2.1. Наличие и функционирование на официальном сайте образовательной организации информации о дистанционных способах взаимодействия с получателями образовательных услуг:",{"$nulls":9},"1.3.1. Удовлетворённость качеством, полнотой и доступностью информации о деятельности образовательной организации, размещённой на стендах в помещении образовательной организации ",null,null,null,"1.3.2. Удовлетворённость качеством, полнотой и доступностью информации о деятельности образовательной организации, размещённой на официальном сайте в сети \"Интернет\"",{"$nulls":7},"2.1.1. Наличие комфортных условий для предоставления образовательных услуг",{"$nulls":8},"2.2.1. Наличие возможности развития творческих способностей и интересов обучающихся, их участие в конкурсах и олимпиадах",{"$nulls":11},"2.3.1. Удовлетворённость качеством, полнотой и доступностью информации о деятельности образовательной организации, размещённой на стендах в помещении образовательной организации ",{"$nulls":7},"3.1.1. Наличие в помещениях образовательной организации и на прилегающей к ней территории:",{"$nulls":8},"3.2.1. Наличие в образовательной организации условий доступности, позволяющих инвалидам получать образовательные услуги наравне с другими",{"$nulls":9},"3.3.1. Удовлетворённость доступностью услуг для инвалидов",{"$nulls":7},"4.1.1. Удовлетворённость доброжелательностью, вежливостью работников образовательной организации, обеспечивающих первичный контакт и информирование получателя услуги при непосредственном обращении в образовательную организацию",{"$nulls":5},"4.2.1. Удовлетворённость доброжелательностью, вежливостью работников образовательной организации, обеспечивающих непосредственное оказание образовательной услуги при обращении в образовательную организацию",{"$nulls":5},"4.3.1. Удовлетворённость доброжелательностью, вежливостью работников образовательной организации при использовании дистанционных форм взаимодействия (по телефону, по электронной почте, с помощью электронных сервисов, подачи электронного обращения)",{"$nulls":7},"5.1.1. Готовность участников образовательных отношений рекомендовать образовательную организацию родственникам и знакомым",{"$nulls":5},"5.2.1. Удовлетворённость удобством графика работы образовательной организации",{"$nulls":5},"5.3.1. Удовлетворённость условиями оказания образовательных услуг в образовательной организации"]
[null,"1.1.1.1. Официальное наименование образовательной организации, контактная информация образовательной организации","1.1.1.2. Информация о режиме и графике работы образовательной организации, режиме занятий","1.1.1.3. Устав образовательной организации","1.1.1.4. Лицензия на осуществление образовательной деятельности","1.1.1.5. Свидетельство о государственной аккредитации","1.1.1.6. Наименование основных образовательных программ, информация о сроке действия государственной аккредитации","1.1.1.7. Информация об уровнях образования и формах обучения","1.1.1.8. Правила (порядок) приёма, перевода, отчисления и восстановления обучающихся","1.1.1.9. Порядок оказания платных образовательных услуг, наличие документа, утверждающего стоимость предоставления услуг","1.1.1.10. Документ о текущем контроле успеваемости и промежуточной аттестации обучающихся","Количество размещённых материалов","Доля размещеннойинформации на стендах","Значение параметра 1.1.1. \nв баллах\n(менее 70% - 0 баллов;\n70-80% - 40 баллов;\n81-90% - 60 баллов;\nболее 90% - 100 баллов)","Подраздел \"Основные сведения\"",{"$nulls":4},"Подраздел \"Структура и органы управления образовательной организацией",null,null,null,"Подраздел \"Документы\"",{"$nulls":13},"Подраздел \"Образование\"",{"$nulls":11},"Подраздел \"Образовательные стандарты\"","Подраздел \"Руководство. Педагогический (научно-педагогический) состав\"",{"$nulls":12},"Подраздел \"Материально-техническое обеспечение и оснащённость образовательного процесса\"",{"$nulls":7},"Подраздел \"Стипендии и иные виды материальной поддержки\"",null,"Подраздел \"Платные образовательные услуги\"",null,null,"Подраздел \"Вкантные места для приёма (перевода)\"","Количество размещённых материалов","Доля размещения информации насайтах","Значение параметра 1.1.2. \nв баллах\n(менее 70% - 0 баллов;\n70-80% - 40 баллов;\n81-90% - 60 баллов;\nболее 90% - 100 баллов)",null,null,"1.2.1.1. Телефон","1.2.1.2. Электронная почта","1.2.1.3. Электронные сервисы (форма для подачи электронного обращения(жалобы), получение консультации по оказываемым услугам и пр.)","1.2.1.4. Раздел \"Часто задаваемые вопросы\"","1.2.1.5. Техническая возможность выражения получателем услуг мнения о качестве условий оказания услуг образовательной организацией (наличие анкеты для опроса граждан или гиперссылки на неё)","1.2.1.6. Иной дистанционный способ взаимодействия","Количество дистанционных способов взаимодействия с получателями образовательных услуг","Значение параметра 1.2.1. \nв баллах\n(отсутствует - 0 баллов; \nналичие и функционирование способа - по 20 баллов); \nболее 4 способов - 100 баллов)",null,null,"Общее количество опрошенных","Количество опрошенных, удовлетворённых качеством, полнотой и доступностью информации о деятельности организации, размещённой на стендах образовательной организации","Доля получателей услуг, удовлетворённых качеством, полнотой и доступностью информации о деятельности организации, размещённой на информационных стендах","Значение параметра 1.3.1. \n1%=1 балл","Общее количество опрошенных","Количество опрошенных, удовлетворённых качеством, полнотой и доступностью информации о деятельности организации, размещённой на сайте в сети \"Интернет\"","Доля получателей услуг, удовлетворённых качеством, полнотой и доступностью информации о деятельности организации, размещённой на сайте в сети \"Интернет\"","Значение параметра 1.3.2. \n1%=1 балл",{"$nulls":4},"2.1.1.1. Наличие комфортной зоны отдыха (ожидания), оборудованной соответствующей мебелью","2.1.1.2. Наличие и понятность навигации внутри образовательной организации","2.1.1.3. Доступность питьевой воды","2.1.1.4. Наличие и доступность санитарно-гигиенических помещений (чистота помещений, наличие мыла, туалетной бумаги и пр.)","2.1.1.5. Санитарное состояние помещений образовательной организации","Количество комфортных условий для предоставления образовательных услуг","Значение параметра 2.1.1. \nв баллах\n(отсутствуют комфртные условия - 0 баллов; по 20 баллов за каждое условие, наличие 5 и более условия - 100 баллов)",null,null,"2.2.1.1. Наличие кружков, спортивных секций, творческих коллективов, научных сообществ, клубов и других объединений","2.2.1.2. Участие обучающихся в различных олимпиадах, смотрах, конкурсах",null,null,null,"2.2.1.3. Наличие победителей в смотрах, конкурсах, олимпиадах различного уровня:",null,null,"Количество способов развития творческих способностей и интересов обучающихся","Значение параметра 2.2.1. \nв баллах\n(отсутствуют комфортные условия - 0 баллов; по 20 баллов за каждую возможность, наличие 5 и более возможностей - 100 баллов)",null,null,"Общее количество опрошенных","Количество опрошенных, удовлетворённых комфортностью предоставления услуг образовательной организацией ","Доля получателей услуг, удовлетворённых комфортностью предоставления услуг образовательной организацией","Значение параметра 2.3.1. \n1%=1 балл",{"$nulls":4},"3.1.1.1. Оборудованных входных групп пандусами (подъёмными платформами)","3.1.1.2. Выделенных стоянок для автотранспортных средств инвалидов","3.1.1.3. Адаптированных лифтов, поручней, расширенных дверных проёмов","3.1.1.4. Специальных кресел-колясок","3.1.1.5. Специально оборудованных санитарно-гигиенических помещений в организации социальной сферы","Количество условий доступности для инвалидов","Значение параметра 3.1.1. \nв баллах\n(отсутствуют условия - 0 баллов; по 20 баллов за каждое условие, наличие 5 и более условия - 100 баллов)",null,null,"3.2.1.1. Дублирование для инвалидов по слуху и зрению звуковой и зрительной информации","3.2.1.2. Дублирование надписей, знаков и иной текстовой и графической информации знаками, выполненными рельефно-точечным шрифтом Брайля","3.2.1.3. Возможность предоставления инвалидам по слуху (слуху и зрению) услуг сурдопереводчика (тифлосурдопереводчика)","3.2.1.4. Наличие альтернативной версии официального сайта образовательной организации  в сети \"Интернет\" для инвалидов по зрению","3.2.1.5. Помощь, оказываемая работниками организациисоциальной сферы, прошедшими необходимое обучение (инструктирование) по сопровождению инвалидов в помещениях организации","3.2.1.6. Наличие возможности предоставления образовательных услуг в дистанционном режиме или на дому","Количество условий доступности, позволяющих инвалидам получать образовательные услуги наравне с другими","Значение параметра 3.2.1. \nв баллах\n(отсутствуют условия - 0 баллов; по 20 баллов за каждое условие, наличие 5 и более условия - 100 баллов)",null,null,"Общее количество опрошенных","Количество опрошенных, удовлетворённых доступностью услуг для инвалидов","Доля получателей услуг, удовлетворённых доступностью услуг для инвалидов","Значение параметра 3.3.1. \n1%=1 балл",{"$nulls":4},"Общее количество опрошенных","Количество опрошенных, удовлетворённых доброжелательностью, вежливостью работников, обеспечивающих первичный контакт и информирование получателя услуг","Доля получателей услуг, удовлетворённых доброжелательностью, вежливостью работников, обеспечивающих первичный контакт и информирование получателя услуг","Значение параметра 4.1.1. \n1%=1 балл",null,null,"Общее количество опрошенных","Количество опрошенных,  удовлетворённых доброжелательностью, вежливостью работников образовательной организации, обеспечивающих непосредственное оказание услуги при обращении в образовательную организацию","Доля получателей услуг,  удовлетворённых доброжелательностью, вежливостью работников образовательной организации, обеспечивающих непосредственное оказание услуги при обращении в образовательную организацию","Значение параметра 4.2.1. \n1%=1 балл",null,null,"Общее количество опрошенных","Количество опрошенных,  удовлетворённых доброжелательностью, вежливостью работников образовательной организации при использовании дистанционных форм взаимодействия","Доля получателей образовательных услуг, удовлетворённых доброжелательностью, вежливостью работников образовательной организации при использовании дистанционных форм взаимодействия","Значение параметра 4.3.1. \n1%=1 балл",{"$nulls":4},"Общее количество опрошенных","Количество опрошенных, которые готовы рекомендовать образовательную организацию родственникам и знакомым","Доля участников образовательных отношений, которые готовы рекомендовать образовательную организацию родственникам и знакомым","Значение параметра 5.1.1. \n1%=1 балл",null,null,"Общее количество опрошенных","Количество опрошенных,  удовлетворённых удобством графика работы образовательной организации","Доля участников образовательных отношений, удовлетворённых удобством графика работы образовательной организации","Значение параметра 5.2.1. \n1%=1 балл",null,null,"Общее количество опрошенных","Количество опрошенных,  удовлетворённых в целом условиями оказания образовательных услуг в образовательной организации","Доля участников образовательных отношений, удовлетворённых в целом условиями оказания образовательных услуг в образовательной организации","Значение параметра 5.3.1. \n1%=1 балл"]
[{"$nulls":14},"1.1.2.1. Информация об официальном наименовании образовательной организации и её дате создания","1.1.2.2. Информация об учредителе (-ях) образовательной организации","1.1.2.3. Информация о месте нахождения образовательной организации и её филиалов (при наличии)","1.1.2.4. Информация о режиме и графике работы образовательной организации","1.1.2.5. Контактная информация \n(телефон, адрес электронной почты)","1.1.2.6. Информация о наименовании структурных подразделений \n(органов управления)","1.1.2.7. Информация о руководителях структурных подразделений","1.1.2.8. Информация о местах нахождения структурных подразделений","1.1.2.9. Наличие положений о структурных подразделениях","1.1.2.10. Устав образовательной организации (копия)","1.1.2.11. Лицензия на осуществление образовательной деятельности \nс приложениями (копия)","1.1.2.12. Свидетельство о государственной аккредитации \nс приложениями (копия)","1.1.2.13. План финансово-хозяйственной деятельности \n(на текущий год)","1.1.2.14. Отчёт о выполнении плана финансово-хозяйственной деятельности (за прошлый год)","1.1.2.15. Правила внутреннего распорядка обучающихся","1.1.2.16. Правила внутреннего трудового распорядка","1.1.2.17. Коллективный договор","1.1.2.18. Отчёт о результатах самообследования","1.1.2.19. Документ о порядке оказания платных образовательных услуг","1.1.2.20. Образец договора об оказании платных образовательных услуг","1.1.2.21. Документ об утверждении стоимости обучения по каждой образовательной программе","1.1.2.22. Документ о текущем контроле успеваемости и промежуточной аттестации","1.1.2.23. Предписания органов, осуществляющих государственный контроль (надзор) в сфере образования, отчёты об исполнении таких предписаний","1.1.2.24. Информация о реализуемых уровнях образования","1.1.2.25. Информация о формах обучения","1.1.2.26. Информация о нормативных сроках обучения","1.1.2.27. Информация о сроке действия государственной аккредитации образовательной программы","1.1.2.28. Информация об описании образовательной программы с приложением её копии","1.1.2.29. Информация об учебном плане с приложением его копии","1.1.2.30. Информация об аннотации к рабочим программа дисциплин (по каждой дисциплине в составе образовательной программы) с приложением их копий","1.1.2.31. Информация о календарном учебном графике с приложением его копии","1.1.2.32. Информация о методических и иных документах, разработанных образовательной организацией","1.1.2.33. Информация о реализуемых образовательных программах с указанием учебных предметов, курсов, дисциплин (модулей), практики","1.1.2.34. Информация о численности обучающихся по реализуемым образовательным программам","1.1.2.35. Информация о языках, на которых осуществляется образование (обучение)","1.1.2.36. Информация о федеральных государственных образовательных стандартах и об образовательных стандартах (копия или гиперссылка)","1.1.2.37. ФИО руководителя образовательной организации","1.1.2.38. Должность руководителя образовательной организации","1.1.2.39. Контактный телефон, адрес электронной почты руководителя образовательной организации","1.1.2.40. ФИО заместителей руководителя, руководителей филиалов","1.1.2.41. Должности заместителей руководителя, руководителей филиалов","1.1.2.42. Контактный телефон, адрес электронной почты заместителей руководителя, руководителей филиалов","1.1.2.43. ФИО педагогических работников","1.1.2.44. Должность педагогических работников","1.1.2.45. Преподаваемые педагогическими работниками дисциплины","1.1.2.46. Наименование направления подготовки и (или) специальности педагогических работников","1.1.2.47. Данные о повышении квалификации и (или) профессиональной переподготовке (при наличии) педагогических работников","1.1.2.48. Общий стаж работы педагогического работника","1.1.2.49. Стаж работы по специальности педагогического работника","1.1.2.50. Сведения о наличии оборудованных учебных кабинетов","1.1.2.51. Сведения о наличии объектов для проведения практических занятий","1.1.2.52. Сведения о наличии библиотек","1.1.2.53. Сведения о наличии объектов спорта","1.1.2.54. Сведения о наличии средств обучения и воспитания","1.1.2.55. Сведения об условиях питания и охраны здоровья обучающихся","1.1.2.56. Сведения о доступе к информационным системам и ИТ сетям","1.1.2.57. Сведения об электронных образовательных ресурсах, к которым обеспечивается доступ обучающихся","1.1.2.58. Информация о наличии и условиях предоставления стипендий","1.1.2.59. Информация о наличии общежития, интерната","1.1.2.60. Правила (порядок) приёма обучающихся","1.1.2.61. Порядок перевода, отчисления и восстановления обучающихся","1.1.2.62. Документ, утверждающий стоимость платных образовательных услуг","1.1.2.63. Информация о количестве вакантных мест для приёма (перевода) по каждой образовательной программе, специальности, направлению подготовки",{"$nulls":37},"Общее количество обучающихся","Количество обучающихся, принявших участие в различных олимпиадах, смотрах, конкурсах","Доля обучающихся (от общего количества обучающихся), принявших участие в различных олимпиадах, смотрах, конкурсах","Значение параметра 2.2.1.2.\n(менее 10% - 0 баллов,\nот 10 до 49% - 1 балл;\n50% и более - 2 балла)","Региональный","Федеральный","Международный"]
[]
["Максимальное значение:",1,1,1,1,1,1,1,1,1,1,10,1,100,1,1,1,1,1,1,1,1,1,1,1,1,1,1,1,1,1,1,1,1,1,1,1,1,1,1,1,1,1,1,1,1,1,1,1,1,1,1,1,1,1,1,1,1,1,1,1,1,1,1,1,1,1,1,1,1,1,1,1,1,1,1,1,63,1,100,0.3,100,1,1,1,1,1,1,6,100,0.3,100,null,null,1,100,null,null,1,100,0.4,100,0.2,100,1,1,1,1,1,5,100,0.3,100,1,null,null,null,2,1,1,1,6,100,0.4,100,null,null,1,100,0.3,100,0.2,100,1,1,1,1,1,5,100,0.3,100,1,1,1,1,1,1,6,100,0.4,100,null,null,1,100,0.3,100,0.15,100,null,null,1,100,0.4,100,null,null,1,100,0.4,100,null,null,1,100,0.2,100,0.15,100,null,null,1,100,0.2,100,null,null,1,100,0.3,100,null,null,1,100,0.5,100,0.3,100,100]
["Абс (пример)",1,0,1,1,1,1,1,0,1,0,{"$f":"SUM(B9:K9)","v":7},{"$f":"L9/L8*100","v":70},40,1,0,1,0,1,1,1,1,1,1,0,1,1,1,1,1,1,0,1,0,1,0,1,0,1,0,0,0,0,1,1,1,1,1,1,1,0,1,0,1,0,1,1,1,0,1,1,1,0,1,1,1,0,1,0,1,1,1,1,1,1,1,1,{"$f":"SUM(O9:BY9)","v":45},{"$f":"BZ9/BZ8*100","v":71.428571428571431},40,null,{"$f":"(N9+CB9)/2","v":40},1,0,0,1,1,1,{"$f":"SUM(CE9:CJ9)","v":4},80,null,{"$f":"CL9","v":80},80,60,{"$f":"CP9/CO9*100","v":75},{"$f":"CQ9","v":75},80,60,{"$f":"CT9/CS9*100","v":75},{"$f":"CU9","v":75},null,{"$f":"(CR9+CV9)/2","v":75},null,{"$f":"(CC8*CD9)+(CM8*CN9)+(CW8*CX9)","v":66},1,0,1,1,1,{"$f":"SUM(DA9:DE9)","v":4},80,null,{"$f":"DG9","v":80},1,200,130,{"$f":"DL9/DK9*100","v":65},2,1,0,0,{"$f":"DJ9+DN9+DO9+DP9+DQ9","v":4},100,null,{"$f":"DS9","v":100},80,50,{"$f":"DW9/DV9*100","v":62.5},{"$f":"DX9","v":62.5},null,{"$f":"DY9","v":62.5},null,{"$f":"(DH8*DI9)+(DT8*DU9)+(DZ8*EA9)","v":82.75},1,0,1,1,1,{"$f":"SUM(ED9:EH9)","v":4},80,null,{"$f":"EJ9","v":80},1,1,1,1,0,0,{"$f":"SUM(EM9:ER9)","v":4},80,null,{"$f":"ET9","v":80},80,65,{"$f":"EX9/EW9*100","v":81.25},{"$f":"EY9","v":81.25},null,{"$f":"EZ9","v":81.25},null,{"$f":"(EK8*EL9)+(EU8*EV9)+(FA8*FB9)","v":80.375},80,77,{"$f":"FF9/FE9*100","v":96.25},{"$f":"FG9","v":96.25},null,{"$f":"FH9","v":96.25},80,51,{"$f":"FL9/FK9*100","v":63.749999999999993},{"$f":"FM9","v":63.749999999999993},null,{"$f":"FN9","v":63.749999999999993},80,46,{"$f":"FR9/FQ9*100","v":57.499999999999993},{"$f":"FS9","v":57.499999999999993},null,{"$f":"FT9","v":57.499999999999993},null,{"$f":"(FI8*FJ9)+(FO8*FP9)+(FU8*FV9)","v":75.5},80,63,{"$f":"FZ9/FY9*100","v":78.75},{"$f":"GA9","v":78.75},null,{"$f":"GB9","v":78.75},80,39,{"$f":"GF9/GE9*100","v":48.75},{"$f":"GG9","v":48.75},null,{"$f":"GH9","v":48.75},80,41,{"$f":"GL9/GK9*100","v":51.249999999999993},{"$f":"GM9","v":51.249999999999993},null,{"$f":"GN9","v":51.249999999999993},null,{"$f":"(GC8*GD9)+(GI8*GJ9)+(GO8*GP9)","v":56},{"$f":"(CY8*CZ9)+(EB8*EC9)+(FC8*FD9)+(FW8*FX9)+(GQ8*GR9)","v":69.931249999999991}]
["Муниципальное автономное некоммерческое учреждение дополниетльбного образования детей Дом художественного творчества детей муницпального образования Кореновский район",1,1,1,1,1,1,1,1,1,1,{"$f":"SUM(B10:K10)","v":10},{"$f":"L10/$L$8*100","v":100},{"$f":"IF(M10<70,0,IF(AND(M10>=70,M10<80),40,IF(AND(M10>=80,M10<90),60,IF(M10>=90,100))))","v":100},1,1,null,1,1,0,0,0,0,1,1,1,1,1,1,1,1,1,1,1,1,1,1,0,1,1,1,1,1,1,1,1,1,1,1,0,1,1,1,1,1,1,1,1,null,1,1,1,1,1,1,0,0,1,0,0,0,0,0,1,1,1,0,{"$f":"SUM(O10:BY10)","v":47},{"$f":"BZ10/$BZ$8*100","v":74.603174603174608},{"$f":"IF(CA10<70,0,IF(AND(CA10>=70,CA10<80),40,IF(AND(CA10>=80,CA10<90),60,IF(CA10>=90,100))))","v":40},null,{"$f":"(N10+CB10)/2","v":70},1,1,0,0,1,1,{"$f":"SUM(CE10:CJ10)","v":4},{"$f":"IF(CK10=0,0,IF(AND(CK10>=1,CK10<=4),CK10*20,IF(CK10>4,100)))","v":80},null,{"$f":"CL10","v":80},50,null,{"$f":"CP10/CO10*100","v":0},{"$f":"CQ10","v":0},50,46,{"$f":"CT10/CS10*100","v":92},{"$f":"CU10","v":92},null,{"$f":"(CR10+CV10)/2","v":46},null,{"$f":"($CC$8*CD10)+($CM$8*CN10)+($CW$8*CX10)","v":63.400000000000006},1,0,1,1,1,{"$f":"SUM(DA10:DE10)","v":4},{"$f":"IF(DF10=0,0,IF(AND(DF10>=1,DF10<5),DF10*20,IF(DF10>=5,100)))","v":80},null,{"$f":"DG10","v":80},1,1954,2173,{"$f":"DL10/DK10*100","v":111.20777891504605},{"$f":"IF(DM10<10,0,IF(AND(DM10>=10,DM10<50),1,IF(DM10>=50,2)))","v":2},14,75,200,{"$f":"DJ10+DN10+DO10+DP10+DQ10","v":292},{"$f":"IF(DR10=0,0,IF(AND(DR10>=1,DR10<5),DR10*20,IF(DR10>=5,100)))","v":100},null,{"$f":"DS10","v":100},null,null,{"$f":"DW10/DV10*100","v":{"$error":"#DIV/0!"}},{"$f":"DX10","v":{"$error":"#DIV/0!"}},null,{"$f":"DY10","v":{"$error":"#DIV/0!"}},null,{"$f":"($DH$8*DI10)+($DT$8*DU10)+($DZ$8*EA10)","v":{"$error":"#DIV/0!"}},{"$nulls":5},{"$f":"SUM(ED10:EH10)","v":0},{"$f":"IF(EI10=0,0,IF(AND(EI10>=1,EI10<5),EI10*20,IF(EI10>=5,100)))","v":0},null,{"$f":"EJ10","v":0},0,0,0,0,0,0,{"$f":"SUM(EM10:ER10)","v":0},{"$f":"IF(ES10=0,0,IF(AND(ES10>=1,ES10<5),ES10*20,IF(ES10>=5,100)))","v":0},null,{"$f":"ET10","v":0},50,27,{"$f":"EX10/EW10*100","v":54},{"$f":"EY10","v":54},null,{"$f":"EZ10","v":54},null,{"$f":"($EK$8*EL10)+($EU$8*EV10)+($FA$8*FB10)","v":16.2},null,null,{"$f":"FF10*FE10/100","v":0},{"$f":"FG10","v":0},null,{"$f":"FH10","v":0},50,50,{"$f":"FL10/FK10*100","v":100},{"$f":"FM10","v":100},null,{"$f":"FN10","v":100},null,null,{"$f":"FR10/FQ10*100","v":{"$error":"#DIV/0!"}},{"$f":"FS10","v":{"$error":"#DIV/0!"}},null,{"$f":"FT10","v":{"$error":"#DIV/0!"}},null,{"$f":"($FI$8*FJ10)+($FO$8*FP10)+($FU$8*FV10)","v":{"$error":"#DIV/0!"}},null,null,{"$f":"FZ10/FY10*100","v":{"$error":"#DIV/0!"}},{"$f":"GA10","v":{"$error":"#DIV/0!"}},null,{"$f":"GB10","v":{"$error":"#DIV/0!"}},50,50,{"$f":"GF10/GE10*100","v":100},{"$f":"GG10","v":100},null,{"$f":"GH10","v":100},50,50,{"$f":"GL10/GK10*100","v":100},{"$f":"GM10","v":100},null,{"$f":"GN10","v":100},null,{"$f":"($GC$8*GD10)+($GI$8*GJ10)+($GO$8*GP10)","v":{"$error":"#DIV/0!"}},{"$f":"($CY$8*CZ10)+($EB$8*EC10)+($FC$8*FD10)+($FW$8*FX10)+($GQ$8*GR10)","v":{"$error":"#DIV/0!"}}]
[]
[]
[]
["Инструкция по заполнению таблицы \"Свод показателей НОКО\":"]
["1. Первая строка, окрашенная в голубой цвет, дана в качестве примера, её удалять не нужно."]
["2. Вам необходимо заполнять только ячейки белого цвета."]
["3. Ячейки сиреневого цвета заполнять не нужно. В них уже внесены все необходимые формулы для расчёта. В случае, если в данную таблицу занесено несколько образовательных организаций, ячейку с формулой нужно протянуть вниз, кликнув на неё, и потянуть за зелёный квадрат внизу ячейки."]
["4. По показателям 1.3., 2.3., 3.3., 4.1., 4.2., 4.3., 5.1., 5.2., 5.3. количество удовлетворённых получателей образовательных услуг проставляется по результатам опроса, полученные результаты должны соответствовать результатам во вкладке \"Опрос\"."]

{"sheet":"Показатели и критерии","index":1,"n_rows":20,"n_cols":22,"rows_kept":20,"cut":false,"hidden":false,"merged":[[17,0,17,21],[18,0,18,21],[19,0,19,21],[0,0,0,21],[13,0,13,21],[14,0,14,21],[15,0,15,21],[16,0,16,21]]}
["Значения показателей и критериев с учётом коэффициентов значимости"]
["Наименование образовательной организации","Показатель 1.1.","Показатель 1.2.","Показатель 1.3.","Критерий 1","Показатель 2.1.","Показатель 2.2.","Показатель 2.3.","Критерий 2","Показатель 3.1.","Показатель 3.2.","Показатель 3.3.","Критерий 3","Показатель 4.1.","Показатель 4.2.","Показатель 4.3.","Критерий 4","Показатель 5.1.","Показатель 5.2.","Показатель 5.3.","Критерий 5","ИТОГО"]
["Коэффициент значимости:",0.3,0.3,0.4,0.2,0.3,0.4,0.3,0.2,0.3,0.4,0.3,0.15,0.4,0.4,0.2,0.15,0.2,0.3,0.5,0.3]
["Абс(пример)",{"$f":"'Свод показателей НОКО'!CD9*$B$3","v":12},{"$f":"'Свод показателей НОКО'!CN9*$C$3","v":24},{"$f":"'Свод показателей НОКО'!CV9*$D$3","v":30},{"$f":"'Свод показателей НОКО'!CZ9*$E$3","v":13.200000000000001},{"$f":"'Свод показателей НОКО'!DI9*$F$3","v":24},{"$f":"'Свод показателей НОКО'!DU9*$G$3","v":40},{"$f":"'Свод показателей НОКО'!EA9*$H$3","v":18.75},{"$f":"'Свод показателей НОКО'!EC9*$I$3","v":16.55},{"$f":"'Свод показателей НОКО'!EL9*$J$3","v":24},{"$f":"'Свод показателей НОКО'!EV9*$K$3","v":32},{"$f":"'Свод показателей НОКО'!FB9*$L$3","v":24.375},{"$f":"'Свод показателей НОКО'!FD9*$M$3","v":12.05625},{"$f":"'Свод показателей НОКО'!FJ9*$N$3","v":38.5},{"$f":"'Свод показателей НОКО'!FP9*$O$3","v":25.5},{"$f":"'Свод показателей НОКО'!FV9*$P$3","v":11.5},{"$f":"'Свод показателей НОКО'!FX9*$Q$3","v":11.324999999999999},{"$f":"'Свод показателей НОКО'!GD9*$R$3","v":15.75},{"$f":"'Свод показателей НОКО'!GJ9*$S$3","v":14.625},{"$f":"'Свод показателей НОКО'!GP9*$T$3","v":25.624999999999996},{"$f":"'Свод показателей НОКО'!GR9*$U$3","v":16.8},{"$f":"'Свод показателей НОКО'!GS9","v":69.931249999999991}]
[{"$f":"'Свод показателей НОКО'!A10","v":"Муниципальное автономное некоммерческое учреждение дополниетльбного образования детей Дом художественного творчества детей муницпального образования Кореновский район"},{"$f":"'Свод показателей НОКО'!CD10*$B$3","v":21},{"$f":"'Свод показателей НОКО'!CN10*$C$3","v":24},{"$f":"'Свод показателей НОКО'!CV10*$D$3","v":36.800000000000004},{"$f":"'Свод показателей НОКО'!CZ10*$E$3","v":12.680000000000001},{"$f":"'Свод показателей НОКО'!DI10*$F$3","v":24},{"$f":"'Свод показателей НОКО'!DU10*$G$3","v":40},{"$f":"'Свод показателей НОКО'!EA10*$H$3","v":{"$error":"#DIV/0!"}},{"$f":"'Свод показателей НОКО'!EC10*$I$3","v":{"$error":"#DIV/0!"}},{"$f":"'Свод показателей НОКО'!EL10*$J$3","v":0},{"$f":"'Свод показателей НОКО'!EV10*$K$3","v":0},{"$f":"'Свод показателей НОКО'!FB10*$L$3","v":16.2},{"$f":"'Свод показателей НОКО'!FD10*$M$3","v":2.4299999999999997},{"$f":"'Свод показателей НОКО'!FJ10*$N$3","v":0},{"$f":"'Свод показателей НОКО'!FP10*$O$3","v":40},{"$f":"'Свод показателей НОКО'!FV10*$P$3","v":{"$error":"#DIV/0!"}},{"$f":"'Свод показателей НОКО'!FX10*$Q$3","v":{"$error":"#DIV/0!"}},{"$f":"'Свод показателей НОКО'!GD10*$R$3","v":{"$error":"#DIV/0!"}},{"$f":"'Свод показателей НОКО'!GJ10*$S$3","v":30},{"$f":"'Свод показателей НОКО'!GP10*$T$3","v":50},{"$f":"'Свод показателей НОКО'!GR10*$U$3","v":{"$error":"#DIV/0!"}},{"$f":"'Свод показателей НОКО'!GS10","v":{"$error":"#DIV/0!"}}]
{"$rows_empty":8}
["Инструкция по заполнению таблицы (в случае, если автоматическое заполнение таблицы не сработает):"]
["1. Значение каждого показателя из таблицы \"Свод показателей НОКО\" умножается на коэффициент значимости показателя."]
["2. Значение каждого критерия из таблицы \"Свод показателей НОКО\" умножается на коэффициент значимости критерия."]
["3. Сумма значений критериев с учётом коэффициента значимости критерия определяет результат независимой оценки (ячейка \"ИТОГО\")."]
["4. В данной таблице сумма показателей не равна значению критерия."]
["5. Первая строка, окрашенная в голубой цвет, дана в качестве примера, её удалять не нужно."]
["6. В случае, если в данную таблицу занесено несколько образовательных организаций, ячейку с формулой, окрашенную в голубой цвет, нужно протянуть вниз, кликнув на неё, и потянуть за зелёный квадрат внизу ячейки."]

{"sheet":"Опрос","index":2,"n_rows":48,"n_cols":6,"rows_kept":48,"cut":false,"hidden":false,"merged":[[47,0,47,1],[43,0,45,0],[44,3,45,3],[46,0,46,1],[7,0,7,1],[12,0,12,1],[17,0,17,1],[22,0,22,1],[32,0,32,1],[37,0,37,1],[36,0,36,1],[38,0,40,0],[39,3,40,3],[41,0,41,1],[42,0,42,1],[28,0,30,0],[29,3,30,3],[31,0,31,1],[33,0,35,0],[34,3,35,3],[21,0,21,1],[23,0,25,0],[24,3,25,3],[26,0,26,1],[13,0,15,0],[14,3,15,3],[16,0,16,1],[18,0,20,0],[19,3,20,3],[6,0,6,1],[8,0,10,0],[9,3,10,3],[11,0,11,1],[0,0,0,1],[0,2,0,3],[1,0,1,1],[1,2,1,3],[3,0,5,0],[4,3,5,3],[0,4,0,5],[1,4,1,5],[4,5,5,5],[9,5,10,5],[14,5,15,5],[44,5,45,5],[19,5,20,5],[24,5,25,5],[29,5,30,5],[34,5,35,5],[39,5,40,5]]}
["Наименование образовательной организации:",null,"Образовательная организация Абс",null,"Муниципальное автономное некоммерческое учреждение дополниетльбного образования детей Дом художественного творчества детей муницпального образования Кореновский район"]
["Количество респондентов:",null,80,null,50]
["Вопрос ","Баллы","Количество ответов","Количество ответов от 5 баллов","Количество ответов","Количество ответов от 5 баллов"]
["1.3. Полнота и доступность информации о деятельности образовательной организации, размещенной на информационных стендах и официальном сайте организации.",0,5,null,0]
[null,5,35,{"$f":"C5+C6","v":75},null,{"$f":"E5+E6","v":50}]
[null,10,40,null,50]
["Сумма ответов:",null,{"$f":"C4+C5+C6","v":80},null,{"$f":"E4+E5+E6","v":50}]
["Доля удовлетворённых по показателю 1.3.:",null,null,{"$f":"D5/C7*100","v":93.75},null,{"$f":"F5/E7*100","v":100}]
["2.3. Удовлетворенность комфортностью условий предоставления услуг.",0,5,null,0]
[null,5,7,{"$f":"C10+C11","v":75},3,{"$f":"E10+E11","v":50}]
[null,10,68,null,47]
["Сумма ответов:",null,{"$f":"C9+C10+C11","v":80},null,{"$f":"E9+E10+E11","v":50}]
["Доля удовлетворённых по показателю 2.3.:",null,null,{"$f":"D10/C12*100","v":93.75},null,{"$f":"F10/E12*100","v":100}]
["3.3. Удовлетворенность доступностью образовательных услуг для лиц с ограниченными возможностями здоровья и инвалидов.",0,13,null,23]
[null,5,29,{"$f":"C15+C16","v":67},2,{"$f":"E15+E16","v":27}]
[null,10,38,null,25]
["Сумма ответов:",null,{"$f":"C14+C15+C16","v":80},null,{"$f":"E14+E15+E16","v":50}]
["Доля удовлетворённых по показателю 3.3.:",null,null,{"$f":"D15/C17*100","v":83.75},null,{"$f":"F15/E17*100","v":54}]
["4.1. Доброжелательность, вежливость работников образовательной организации, обеспечивающих первичный контакт и получателя услуги при обращении в ОО",0,16,null,0]
[null,5,41,{"$f":"C20+C21","v":64},0,{"$f":"E20+E21","v":50}]
[null,10,23,null,50]
["Сумма ответов:",null,{"$f":"C19+C20+C21","v":80},null,{"$f":"E19+E20+E21","v":50}]
["Доля удовлетворённых по показателю 4.1.:",null,null,{"$f":"D20/C22*100","v":80},null,{"$f":"F20/E22*100","v":100}]
["4.2. Доброжелательность, вежливость работников образовательной организации, обеспечивающих оказание образовательной услуги при обращении в ОО.",0,39,null,0]
[null,5,11,{"$f":"C25+C26","v":41},0,{"$f":"E25+E26","v":50}]
[null,10,30,null,50]
["Сумма ответов:",null,{"$f":"C24+C25+C26","v":80},null,{"$f":"E24+E25+E26","v":50}]
["Доля удовлетворённых по показателю 4.2.:",null,null,{"$f":"D25/C27*100","v":51.249999999999993},null,{"$f":"F25/E27*100","v":100}]
["4.3. Доброжелательность, вежливость работников образовательной организации при использовании дистанционных форм взаимодействия.",0,12,null,0]
[null,5,14,{"$f":"C30+C31","v":68},0,{"$f":"E30+E31","v":0}]
[null,10,54,null,0]
["Сумма ответов:",null,{"$f":"C29+C30+C31","v":80},null,{"$f":"E29+E30+E31","v":0}]
["Доля удовлетворённых по показателю 4.3.:",null,null,{"$f":"D30/C32*100","v":85},null,{"$f":"F30/E32*100","v":{"$error":"#DIV/0!"}}]
["5.1. Готовность рекомендовать образовательную организацию родственникам и знакомым.",0,6,null,4]
[null,5,28,{"$f":"C35+C36","v":74},15,{"$f":"E35+E36","v":46}]
[null,10,46,null,31]
["Сумма ответов:",null,{"$f":"C34+C35+C36","v":80},null,{"$f":"E34+E35+E36","v":50}]
["Доля удовлетворённых по показателю 5.1.:",null,null,{"$f":"D35/C37*100","v":92.5},null,{"$f":"F35/E37*100","v":92}]
["5.2. Удовлетворенность удобством графика работы образовательной организации.",0,19,null,0]
[null,5,10,{"$f":"C40+C41","v":61},0,{"$f":"E40+E41","v":50}]
[null,10,51,null,50]
["Сумма ответов:",null,{"$f":"C39+C40+C41","v":80},null,{"$f":"E39+E40+E41","v":50}]
["Доля удовлетворённых по показателю 5.2.:",null,null,{"$f":"D40/C42*100","v":76.25},null,{"$f":"F40/E42*100","v":100}]
["5.3. Доброжелательность, вежливость работников образовательной организации при использовании дистанционных форм взаимодействия.",0,17,null,0]
[null,5,18,{"$f":"C45+C46","v":63},0,{"$f":"E45+E46","v":0}]
[null,10,45,null,0]
["Сумма ответов:",null,{"$f":"C44+C45+C46","v":80},null,0]
["Доля удовлетворённых по показателю 5.3.:",null,null,{"$f":"D45/C47*100","v":78.75},null,{"$f":"F45/E47*100","v":{"$error":"#DIV/0!"}}]